[Event "Titled Tuesday Blitz February 22 Early 2022"]
[White "Caputcuoglu, Zeki Berke"]
[Black "Gaehwiler, Gabriel"]
[WhiteFideId "34548610"]
[BlackFideId "1314530"]
[WhiteElo "1368"]
[BlackElo "2383"]
[Result "0-1"]
[Round "02"]
[TimeControl "180+1"]
[Date "2022.02.22"]
[WhiteClock "0:00:04"]
[BlackClock "0:00:29"]

1. e4 {[%clk 0:03:00]}  c5 {[%clk 0:02:58]} 2. Nf3 {[%clk 0:03:00]}  Nc6 {[%clk 0:02:57]} 3. d4 {[%clk 0:03:00]}  cxd4 {[%clk 0:02:58]} 4. Nxd4 {[%clk 0:03:01]}  Nf6 {[%clk 0:02:58]} 5. Nc3 {[%clk 0:03:01]}  d6 {[%clk 0:02:59]} 6. Bg5 {[%clk 0:03:00]}  Bd7 {[%clk 0:02:59]} 7. Qd2 {[%clk 0:02:59]}  Rc8 {[%clk 0:02:59]} 8. f4 {[%clk 0:02:59]}  Qa5 {[%clk 0:02:59]} 9. O-O-O {[%clk 0:02:48]}  Nxd4 {[%clk 0:02:57]} 10. Qxd4 {[%clk 0:02:49]}  Rxc3 {[%clk 0:02:57]} 11. Qxc3 {[%clk 0:02:17]}  Qxc3 {[%clk 0:02:56]} 12. bxc3 {[%clk 0:02:18]}  Nxe4 {[%clk 0:02:57]} 13. Bh4 {[%clk 0:02:14]}  Nxc3 {[%clk 0:02:48]} 14. Rd4 {[%clk 0:01:57]}  Na4 {[%clk 0:02:41]} 15. Bc4 {[%clk 0:01:52]}  e6 {[%clk 0:02:28]} 16. Re1 {[%clk 0:01:30]}  Be7 {[%clk 0:02:21]} 17. Bxe7 {[%clk 0:01:16]}  Kxe7 {[%clk 0:02:22]} 18. Bb3 {[%clk 0:00:55]}  Nc5 {[%clk 0:02:15]} 19. Kb2 {[%clk 0:00:48]}  Rc8 {[%clk 0:02:14]} 20. Red1 {[%clk 0:00:45]}  Rc6 {[%clk 0:01:25]} 21. g4 {[%clk 0:00:27]}  Rb6 {[%clk 0:01:22]} 22. Kc3 {[%clk 0:00:25]}  d5 {[%clk 0:01:17]} 23. Rb4 {[%clk 0:00:25]}  Ne4+ {[%clk 0:01:16]} 24. Rxe4 {[%clk 0:00:23]}  dxe4 {[%clk 0:01:17]} 25. Rd4 {[%clk 0:00:17]}  f5 {[%clk 0:01:09]} 26. gxf5 {[%clk 0:00:13]}  exf5 {[%clk 0:01:10]} 27. Rd5 {[%clk 0:00:13]}  Rh6 {[%clk 0:01:04]} 28. Re5+ {[%clk 0:00:13]}  Kd6 {[%clk 0:01:04]} 29. Rd5+ {[%clk 0:00:13]}  Kc7 {[%clk 0:01:04]} 30. Kd4 {[%clk 0:00:13]}  Rxh2 {[%clk 0:00:59]} 31. Rc5+ {[%clk 0:00:13]}  Kd8 {[%clk 0:00:53]} 32. Ke5 {[%clk 0:00:13]}  e3 {[%clk 0:00:52]} 33. Kd4 {[%clk 0:00:05]}  e2 {[%clk 0:00:47]} 34. Re5 {[%clk 0:00:06]}  Rf2 {[%clk 0:00:42]} 35. Bc4 {[%clk 0:00:03]}  Rxf4+ {[%clk 0:00:40]} 36. Kc5 {[%clk 0:00:04]}  h5 {[%clk 0:00:30]} 37. Bxe2 {[%clk 0:00:04]}  h4 {[%clk 0:00:30]} 38. Rd5 {[%clk 0:00:03]}  Ke7 {[%clk 0:00:28]} 39. Re5+ {[%clk 0:00:02]}  Kf6 {[%clk 0:00:28]} 40. Kd6 {[%clk 0:00:02]}  Rd4+ {[%clk 0:00:28]} 41. Rd5 {[%clk 0:00:03]}  Rxd5+ {[%clk 0:00:28]} 42. Kxd5 {[%clk 0:00:04]}  Bc6+ {[%clk 0:00:29]} 0-1


[Site "https://www.chess.com"]

[Event "Titled Tuesday Blitz February 22 Early 2022"]
[White "Chincholimath, Halsagar"]
[Black "Danaci, Ege"]
[WhiteFideId "5022487"]
[BlackFideId "34506748"]
[WhiteElo "1737"]
[BlackElo "1799"]
[Result "0-1"]
[Round "02"]
[TimeControl "180+1"]
[Date "2022.02.22"]
[WhiteClock "0:00:03"]
[BlackClock "0:00:15"]

1. e4 {[%clk 0:03:00]}  c5 {[%clk 0:02:59]} 2. c3 {[%clk 0:02:59]}  Nf6 {[%clk 0:02:58]} 3. e5 {[%clk 0:02:59]}  Nd5 {[%clk 0:02:58]} 4. d4 {[%clk 0:02:59]}  cxd4 {[%clk 0:02:59]} 5. cxd4 {[%clk 0:02:59]}  e6 {[%clk 0:03:00]} 6. Nf3 {[%clk 0:02:59]}  b6 {[%clk 0:02:59]} 7. a3 {[%clk 0:02:57]}  d6 {[%clk 0:02:58]} 8. exd6 {[%clk 0:02:57]}  Bxd6 {[%clk 0:02:57]} 9. Bd3 {[%clk 0:02:57]}  O-O {[%clk 0:02:24]} 10. Bxh7+ {[%clk 0:02:43]}  Kxh7 {[%clk 0:02:24]} 11. Ng5+ {[%clk 0:02:43]}  Kg6 {[%clk 0:02:24]} 12. h4 {[%clk 0:01:53]}  Bf4 {[%clk 0:01:26]} 13. h5+ {[%clk 0:01:26]}  Kh6 {[%clk 0:01:23]} 14. Bxf4 {[%clk 0:00:55]}  Nxf4 {[%clk 0:01:21]} 15. Nh3 {[%clk 0:00:30]}  Nxg2+ {[%clk 0:01:02]} 16. Kf1 {[%clk 0:00:27]}  Qd5 {[%clk 0:00:53]} 17. Qd2+ {[%clk 0:00:23]}  Kh7 {[%clk 0:00:53]} 18. Ng5+ {[%clk 0:00:22]}  Kg8 {[%clk 0:00:53]} 19. Kg1 {[%clk 0:00:19]}  Bb7 {[%clk 0:00:33]} 20. Rh2 {[%clk 0:00:13]}  Nd7 {[%clk 0:00:25]} 21. Nc3 {[%clk 0:00:13]}  Qf5 {[%clk 0:00:24]} 22. Rxg2 {[%clk 0:00:10]}  Bxg2 {[%clk 0:00:25]} 23. Kxg2 {[%clk 0:00:11]}  Qg4+ {[%clk 0:00:23]} 24. Kf1 {[%clk 0:00:09]}  Qxh5 {[%clk 0:00:24]} 25. Nce4 {[%clk 0:00:04]}  Qh1+ {[%clk 0:00:22]} 26. Ke2 {[%clk 0:00:03]}  Qxa1 {[%clk 0:00:22]} 27. Qd3 {[%clk 0:00:04]}  Qxb2+ {[%clk 0:00:19]} 28. Kf3 {[%clk 0:00:03]}  f5 {[%clk 0:00:15]} 0-1


[Site "https://www.chess.com"]

[Event "Titled Tuesday Blitz February 22 Early 2022"]
[White "Corrales Jimenez, Fidel"]
[Black "Tymrakiewicz, Rafal"]
[WhiteFideId "3506690"]
[BlackFideId "1108832"]
[WhiteElo "2541"]
[BlackElo "2205"]
[Result "1-0"]
[Round "02"]
[TimeControl "180+1"]
[Date "2022.02.22"]
[WhiteClock "0:01:52"]
[BlackClock "0:00:19"]

1. d4 {[%clk 0:03:00]}  Nf6 {[%clk 0:02:59]} 2. c4 {[%clk 0:03:00]}  g6 {[%clk 0:02:59]} 3. Nc3 {[%clk 0:03:01]}  Bg7 {[%clk 0:03:00]} 4. Bf4 {[%clk 0:03:01]}  O-O {[%clk 0:02:58]} 5. e3 {[%clk 0:03:01]}  c5 {[%clk 0:02:55]} 6. dxc5 {[%clk 0:02:56]}  Qa5 {[%clk 0:02:54]} 7. Bd3 {[%clk 0:02:51]}  Na6 {[%clk 0:02:52]} 8. Nf3 {[%clk 0:02:26]}  Nxc5 {[%clk 0:02:50]} 9. O-O {[%clk 0:02:27]}  Nxd3 {[%clk 0:02:47]} 10. Qxd3 {[%clk 0:02:28]}  d6 {[%clk 0:02:47]} 11. h3 {[%clk 0:02:26]}  Bf5 {[%clk 0:02:45]} 12. e4 {[%clk 0:02:24]}  Be6 {[%clk 0:02:42]} 13. b3 {[%clk 0:02:23]}  Nd7 {[%clk 0:02:33]} 14. Rac1 {[%clk 0:02:23]}  Nc5 {[%clk 0:02:31]} 15. Qe3 {[%clk 0:02:22]}  Bxc3 {[%clk 0:02:11]} 16. Rxc3 {[%clk 0:02:22]}  Nxe4 {[%clk 0:02:12]} 17. Rc2 {[%clk 0:02:15]}  Nf6 {[%clk 0:02:08]} 18. Re2 {[%clk 0:02:12]}  Rfe8 {[%clk 0:02:05]} 19. Bg5 {[%clk 0:02:02]}  Nd7 {[%clk 0:01:57]} 20. Rfe1 {[%clk 0:01:57]}  Nf8 {[%clk 0:01:43]} 21. Qd4 {[%clk 0:01:53]}  Qc5 {[%clk 0:01:16]} 22. Qc3 {[%clk 0:01:53]}  Bf5 {[%clk 0:00:48]} 23. Rxe7 {[%clk 0:01:51]}  Rxe7 {[%clk 0:00:47]} 24. Rxe7 {[%clk 0:01:52]}  Ne6 {[%clk 0:00:19]} 25. Bh6 {[%clk 0:01:52]} 1-0


[Site "https://www.chess.com"]

[Event "Titled Tuesday Blitz February 22 Early 2022"]
[White "Dauner, Benedikt"]
[Black "Petrosyan, Manuel"]
[WhiteFideId "16225899"]
[BlackFideId "13300857"]
[WhiteElo "2230"]
[BlackElo "2592"]
[Result "0-1"]
[Round "02"]
[TimeControl "180+1"]
[Date "2022.02.22"]
[WhiteClock "0:00:01"]
[BlackClock "0:00:03"]

1. d4 {[%clk 0:03:00]}  Nf6 {[%clk 0:02:57]} 2. Nf3 {[%clk 0:03:00]}  d5 {[%clk 0:02:57]} 3. c3 {[%clk 0:03:00]}  e6 {[%clk 0:02:54]} 4. Bf4 {[%clk 0:02:59]}  Bd6 {[%clk 0:02:54]} 5. e3 {[%clk 0:02:59]}  c5 {[%clk 0:02:51]} 6. Nbd2 {[%clk 0:02:58]}  Qc7 {[%clk 0:02:49]} 7. Bxd6 {[%clk 0:02:43]}  Qxd6 {[%clk 0:02:50]} 8. Ne5 {[%clk 0:02:43]}  O-O {[%clk 0:02:37]} 9. Bd3 {[%clk 0:02:40]}  b6 {[%clk 0:02:32]} 10. f4 {[%clk 0:02:27]}  Ba6 {[%clk 0:02:28]} 11. Bxa6 {[%clk 0:02:27]}  Nxa6 {[%clk 0:02:29]} 12. O-O {[%clk 0:02:28]}  Nb8 {[%clk 0:02:03]} 13. Rf3 {[%clk 0:02:27]}  Nc6 {[%clk 0:01:55]} 14. Rh3 {[%clk 0:02:25]}  Ne7 {[%clk 0:01:50]} 15. g4 {[%clk 0:02:21]}  Nd7 {[%clk 0:00:51]} 16. Qe1 {[%clk 0:01:33]}  Rfe8 {[%clk 0:00:36]} 17. Qh4 {[%clk 0:00:54]}  Nf8 {[%clk 0:00:36]} 18. Qh5 {[%clk 0:00:54]}  Neg6 {[%clk 0:00:32]} 19. Ndf3 {[%clk 0:00:50]}  f6 {[%clk 0:00:31]} 20. Nxg6 {[%clk 0:00:47]}  hxg6 {[%clk 0:00:32]} 21. Qh4 {[%clk 0:00:43]}  cxd4 {[%clk 0:00:26]} 22. cxd4 {[%clk 0:00:40]}  Qb4 {[%clk 0:00:24]} 23. g5 {[%clk 0:00:39]}  Kf7 {[%clk 0:00:17]} 24. Rf1 {[%clk 0:00:34]}  Qxb2 {[%clk 0:00:08]} 25. gxf6 {[%clk 0:00:15]}  gxf6 {[%clk 0:00:08]} 26. Ne5+ {[%clk 0:00:16]}  Ke7 {[%clk 0:00:08]} 27. Rg3 {[%clk 0:00:05]}  Qe2 {[%clk 0:00:03]} 28. Qh3 {[%clk 0:00:01]}  Kd6 {[%clk 0:00:03]} 29. Nf3 {[%clk 0:00:01]}  g5 {[%clk 0:00:03]} 30. Kh1 {[%clk 0:00:01]}  Qxf1+ {[%clk 0:00:03]} 0-1


[Site "https://www.chess.com"]

[Event "Titled Tuesday Blitz February 22 Early 2022"]
[White "De Souza, Cristiano Gomes"]
[Black "Fiorito, Fabian"]
[WhiteFideId "2151758"]
[BlackFideId "100200"]
[WhiteElo "2068"]
[BlackElo "2395"]
[Result "0-1"]
[Round "02"]
[TimeControl "180+1"]
[Date "2022.02.22"]
[WhiteClock "0:00:11"]
[BlackClock "0:00:14"]

1. d4 {[%clk 0:03:00]}  d5 {[%clk 0:03:00]} 2. c4 {[%clk 0:03:00]}  c6 {[%clk 0:02:59]} 3. Nf3 {[%clk 0:02:57]}  Nf6 {[%clk 0:03:00]} 4. Nc3 {[%clk 0:02:56]}  e6 {[%clk 0:03:00]} 5. Bg5 {[%clk 0:02:54]}  Be7 {[%clk 0:02:59]} 6. e3 {[%clk 0:02:54]}  Nbd7 {[%clk 0:02:59]} 7. Rc1 {[%clk 0:02:54]}  h6 {[%clk 0:02:59]} 8. Bh4 {[%clk 0:02:54]}  O-O {[%clk 0:03:00]} 9. Be2 {[%clk 0:02:54]}  dxc4 {[%clk 0:03:00]} 10. Bxc4 {[%clk 0:02:53]}  b5 {[%clk 0:03:00]} 11. Bd3 {[%clk 0:02:53]}  Bb7 {[%clk 0:03:01]} 12. O-O {[%clk 0:02:52]}  a6 {[%clk 0:03:02]} 13. a4 {[%clk 0:02:50]}  b4 {[%clk 0:03:00]} 14. Bxf6 {[%clk 0:02:49]}  Nxf6 {[%clk 0:02:56]} 15. Ne4 {[%clk 0:02:49]}  Nd7 {[%clk 0:02:35]} 16. Nfd2 {[%clk 0:02:35]}  f5 {[%clk 0:02:29]} 17. Ng3 {[%clk 0:02:15]}  c5 {[%clk 0:02:29]} 18. Qb3 {[%clk 0:02:09]}  Qb6 {[%clk 0:02:26]} 19. Bc4 {[%clk 0:02:07]}  Kh8 {[%clk 0:01:50]} 20. Bxe6 {[%clk 0:02:05]}  Nf6 {[%clk 0:01:49]} 21. Nxf5 {[%clk 0:02:01]}  Rae8 {[%clk 0:01:07]} 22. Bf7 {[%clk 0:01:55]}  Qc6 {[%clk 0:01:06]} 23. Nf3 {[%clk 0:01:41]}  Qe4 {[%clk 0:01:00]} 24. Ng3 {[%clk 0:01:29]}  Qg4 {[%clk 0:00:57]} 25. Bxe8 {[%clk 0:01:27]}  Rxe8 {[%clk 0:00:56]} 26. h3 {[%clk 0:01:16]}  Qd7 {[%clk 0:00:49]} 27. Ne5 {[%clk 0:01:14]}  Qc7 {[%clk 0:00:44]} 28. Ng6+ {[%clk 0:01:09]}  Kh7 {[%clk 0:00:44]} 29. Nxe7 {[%clk 0:01:09]}  Qxe7 {[%clk 0:00:45]} 30. Rxc5 {[%clk 0:01:06]}  Rf8 {[%clk 0:00:30]} 31. Qxb4 {[%clk 0:01:04]}  Ba8 {[%clk 0:00:29]} 32. Qc3 {[%clk 0:01:02]}  Qf7 {[%clk 0:00:27]} 33. Rc7 {[%clk 0:00:57]}  Qg6 {[%clk 0:00:27]} 34. Rc1 {[%clk 0:00:44]}  h5 {[%clk 0:00:26]} 35. h4 {[%clk 0:00:33]}  Ne4 {[%clk 0:00:24]} 36. Qd3 {[%clk 0:00:20]}  Rxf2 {[%clk 0:00:17]} 37. Rxg7+ {[%clk 0:00:17]}  Kxg7 {[%clk 0:00:16]} 38. Rc7+ {[%clk 0:00:15]}  Kh6 {[%clk 0:00:16]} 39. Qc4 {[%clk 0:00:14]}  Rxg2+ {[%clk 0:00:13]} 40. Kf1 {[%clk 0:00:13]}  Nd2+ {[%clk 0:00:13]} 41. Ke1 {[%clk 0:00:12]}  Qxg3+ {[%clk 0:00:13]} 42. Kd1 {[%clk 0:00:11]}  Nxc4 {[%clk 0:00:14]} 0-1


[Site "https://www.chess.com"]

[Event "Titled Tuesday Blitz February 22 Early 2022"]
[White "Demchenko, Anton"]
[Black "Borisova, Ekaterina"]
[WhiteFideId "4160258"]
[BlackFideId "34124184"]
[WhiteElo "2539"]
[BlackElo "2034"]
[Result "1-0"]
[Round "02"]
[TimeControl "180+1"]
[Date "2022.02.22"]
[WhiteClock "0:00:05"]
[BlackClock "0:00:02"]

1. e4 {[%clk 0:03:00]}  c6 {[%clk 0:03:00]} 2. d4 {[%clk 0:03:00]}  d5 {[%clk 0:03:00]} 3. e5 {[%clk 0:03:01]}  Bf5 {[%clk 0:03:01]} 4. Bd3 {[%clk 0:03:02]}  Bxd3 {[%clk 0:03:00]} 5. Qxd3 {[%clk 0:03:03]}  e6 {[%clk 0:03:00]} 6. Ne2 {[%clk 0:03:03]}  Qa5+ {[%clk 0:02:56]} 7. c3 {[%clk 0:03:04]}  Qa6 {[%clk 0:02:56]} 8. Qd1 {[%clk 0:03:04]}  c5 {[%clk 0:02:54]} 9. O-O {[%clk 0:03:05]}  Nc6 {[%clk 0:02:48]} 10. Be3 {[%clk 0:03:05]}  Qb6 {[%clk 0:02:39]} 11. Nd2 {[%clk 0:02:59]}  Nh6 {[%clk 0:02:37]} 12. dxc5 {[%clk 0:02:06]}  Bxc5 {[%clk 0:02:36]} 13. Bxh6 {[%clk 0:01:52]}  gxh6 {[%clk 0:02:35]} 14. b4 {[%clk 0:01:18]}  Be7 {[%clk 0:02:31]} 15. Nf3 {[%clk 0:01:14]}  a5 {[%clk 0:02:16]} 16. a3 {[%clk 0:01:11]}  Rg8 {[%clk 0:02:16]} 17. Qd3 {[%clk 0:00:54]}  Rg7 {[%clk 0:01:58]} 18. b5 {[%clk 0:00:54]}  Na7 {[%clk 0:01:56]} 19. a4 {[%clk 0:00:54]}  Rc8 {[%clk 0:01:53]} 20. Ned4 {[%clk 0:00:49]}  Qc5 {[%clk 0:01:11]} 21. Qe3 {[%clk 0:00:44]}  Bg5 {[%clk 0:01:01]} 22. Nxg5 {[%clk 0:00:41]}  Rxg5 {[%clk 0:00:56]} 23. Rac1 {[%clk 0:00:38]}  Kd7 {[%clk 0:00:06]} 24. f4 {[%clk 0:00:37]}  Rg7 {[%clk 0:00:06]} 25. f5 {[%clk 0:00:37]}  Rcg8 {[%clk 0:00:07]} 26. g3 {[%clk 0:00:37]}  Nc8 {[%clk 0:00:05]} 27. Qxh6 {[%clk 0:00:32]}  exf5 {[%clk 0:00:02]} 28. Kh1 {[%clk 0:00:31]}  Ne7 {[%clk 0:00:02]} 29. e6+ {[%clk 0:00:29]}  Ke8 {[%clk 0:00:02]} 30. Rfe1 {[%clk 0:00:29]}  f6 {[%clk 0:00:01]} 31. Qe3 {[%clk 0:00:25]}  Kd8 {[%clk 0:00:01]} 32. Qf4 {[%clk 0:00:23]}  Kc8 {[%clk 0:00:02]} 33. Nxf5 {[%clk 0:00:21]}  Nxf5 {[%clk 0:00:01]} 34. Qxf5 {[%clk 0:00:22]}  Qc4 {[%clk 0:00:02]} 35. Rcd1 {[%clk 0:00:20]}  Re7 {[%clk 0:00:01]} 36. Rxd5 {[%clk 0:00:19]}  Rg5 {[%clk 0:00:02]} 37. Rd8+ {[%clk 0:00:04]}  Kxd8 {[%clk 0:00:02]} 38. Qxf6 {[%clk 0:00:05]} 1-0


[Site "https://www.chess.com"]

[Event "Titled Tuesday Blitz February 22 Early 2022"]
[White "Dilmukhametov, Artur"]
[Black "Urbina Perez, Juan Antonio"]
[WhiteFideId "24179922"]
[BlackFideId "2217368"]
[WhiteElo "2266"]
[BlackElo "2192"]
[Result "0-1"]
[Round "02"]
[TimeControl "180+1"]
[Date "2022.02.22"]
[WhiteClock "0:00:09"]
[BlackClock "0:00:28"]

1. e4 {[%clk 0:02:44]}  e5 {[%clk 0:02:59]} 2. Nf3 {[%clk 0:02:43]}  Nc6 {[%clk 0:02:58]} 3. Bc4 {[%clk 0:02:43]}  Bc5 {[%clk 0:02:59]} 4. c3 {[%clk 0:02:43]}  Nf6 {[%clk 0:02:59]} 5. d4 {[%clk 0:02:44]}  exd4 {[%clk 0:03:00]} 6. cxd4 {[%clk 0:02:44]}  Bb4+ {[%clk 0:03:00]} 7. Bd2 {[%clk 0:02:45]}  Bxd2+ {[%clk 0:03:00]} 8. Nbxd2 {[%clk 0:02:45]}  d5 {[%clk 0:03:00]} 9. exd5 {[%clk 0:02:45]}  Nxd5 {[%clk 0:03:01]} 10. O-O {[%clk 0:02:43]}  O-O {[%clk 0:03:00]} 11. Re1 {[%clk 0:02:43]}  Bg4 {[%clk 0:02:58]} 12. Qb3 {[%clk 0:02:41]}  Na5 {[%clk 0:02:53]} 13. Bxd5 {[%clk 0:02:36]}  Nxb3 {[%clk 0:02:53]} 14. Bxb3 {[%clk 0:02:36]}  Bxf3 {[%clk 0:02:50]} 15. Nxf3 {[%clk 0:02:36]}  c6 {[%clk 0:02:50]} 16. Re3 {[%clk 0:02:34]}  Qd7 {[%clk 0:02:38]} 17. Rae1 {[%clk 0:02:32]}  Rae8 {[%clk 0:02:29]} 18. Rxe8 {[%clk 0:02:30]}  Rxe8 {[%clk 0:02:30]} 19. Ne5 {[%clk 0:02:28]}  Rxe5 {[%clk 0:02:29]} 20. dxe5 {[%clk 0:02:24]}  Qd2 {[%clk 0:02:29]} 21. Rd1 {[%clk 0:02:22]}  Qa5 {[%clk 0:02:25]} 22. g3 {[%clk 0:02:09]}  Kf8 {[%clk 0:02:20]} 23. Rd7 {[%clk 0:02:06]}  Qe1+ {[%clk 0:02:20]} 24. Kg2 {[%clk 0:02:05]}  Qe4+ {[%clk 0:02:19]} 25. Kg1 {[%clk 0:02:03]}  Qe1+ {[%clk 0:02:19]} 26. Kg2 {[%clk 0:02:03]}  Qxe5 {[%clk 0:02:20]} 27. Rxf7+ {[%clk 0:02:01]}  Ke8 {[%clk 0:02:19]} 28. Rxb7 {[%clk 0:02:01]}  c5 {[%clk 0:02:19]} 29. Rxa7 {[%clk 0:01:54]}  c4 {[%clk 0:02:18]} 30. Ba4+ {[%clk 0:01:47]}  Kf8 {[%clk 0:02:16]} 31. b3 {[%clk 0:01:36]}  Qe4+ {[%clk 0:02:06]} 32. Kg1 {[%clk 0:01:34]}  Qb1+ {[%clk 0:02:05]} 33. Kg2 {[%clk 0:01:33]}  Qxa2 {[%clk 0:02:04]} 34. Ra8+ {[%clk 0:01:31]}  Ke7 {[%clk 0:01:56]} 35. Ra7+ {[%clk 0:01:31]}  Kf6 {[%clk 0:01:53]} 36. Ra6+ {[%clk 0:01:31]}  Ke5 {[%clk 0:01:51]} 37. Ra5+ {[%clk 0:01:28]}  Kd4 {[%clk 0:01:50]} 38. bxc4 {[%clk 0:01:19]}  Qxc4 {[%clk 0:01:49]} 39. Be8 {[%clk 0:01:09]}  Qe6 {[%clk 0:01:40]} 40. Bh5 {[%clk 0:01:04]}  Kd3 {[%clk 0:01:31]} 41. Bf3 {[%clk 0:00:58]}  Qb6 {[%clk 0:01:26]} 42. Rg5 {[%clk 0:00:54]}  g6 {[%clk 0:01:25]} 43. Rd5+ {[%clk 0:00:54]}  Kc3 {[%clk 0:01:24]} 44. Rd7 {[%clk 0:00:54]}  g5 {[%clk 0:01:20]} 45. Rxh7 {[%clk 0:00:49]}  Qg6 {[%clk 0:01:19]} 46. Rc7+ {[%clk 0:00:47]}  Kd4 {[%clk 0:01:19]} 47. Rc6 {[%clk 0:00:46]}  Qf5 {[%clk 0:01:17]} 48. h3 {[%clk 0:00:44]}  Qf7 {[%clk 0:01:11]} 49. Rd6+ {[%clk 0:00:44]}  Ke5 {[%clk 0:01:10]} 50. Rd5+ {[%clk 0:00:43]}  Kf6 {[%clk 0:01:09]} 51. Rd4 {[%clk 0:00:38]}  Qa7 {[%clk 0:01:08]} 52. Rg4 {[%clk 0:00:37]}  Qa3 {[%clk 0:01:05]} 53. Rc4 {[%clk 0:00:35]}  Qa2 {[%clk 0:01:01]} 54. Rc6+ {[%clk 0:00:36]}  Kg7 {[%clk 0:01:00]} 55. Rc7+ {[%clk 0:00:36]}  Kf6 {[%clk 0:01:00]} 56. Rc6+ {[%clk 0:00:36]}  Kg7 {[%clk 0:01:00]} 57. Rc5 {[%clk 0:00:36]}  Kf6 {[%clk 0:01:00]} 58. Rc3 {[%clk 0:00:33]}  Qa5 {[%clk 0:00:58]} 59. Re3 {[%clk 0:00:32]}  Qc5 {[%clk 0:00:57]} 60. Re4 {[%clk 0:00:32]}  Qb5 {[%clk 0:00:55]} 61. Rg4 {[%clk 0:00:31]}  Qc5 {[%clk 0:00:54]} 62. Be4 {[%clk 0:00:26]}  Qb5 {[%clk 0:00:50]} 63. Bf3 {[%clk 0:00:22]}  Qc5 {[%clk 0:00:49]} 64. Ra4 {[%clk 0:00:22]}  Qb5 {[%clk 0:00:48]} 65. Ra8 {[%clk 0:00:22]}  Qc5 {[%clk 0:00:47]} 66. Rg8 {[%clk 0:00:22]}  Kf7 {[%clk 0:00:45]} 67. Rd8 {[%clk 0:00:21]}  Kf6 {[%clk 0:00:45]} 68. Rd5 {[%clk 0:00:20]}  Qb4 {[%clk 0:00:45]} 69. Rd3 {[%clk 0:00:20]}  Qc4 {[%clk 0:00:44]} 70. Re3 {[%clk 0:00:20]}  Qd4 {[%clk 0:00:43]} 71. Re4 {[%clk 0:00:20]}  Qc5 {[%clk 0:00:43]} 72. Rg4 {[%clk 0:00:21]}  Qb5 {[%clk 0:00:43]} 73. h4 {[%clk 0:00:21]}  gxh4 {[%clk 0:00:42]} 74. Rxh4 {[%clk 0:00:22]}  Qb3 {[%clk 0:00:40]} 75. Rh6+ {[%clk 0:00:21]}  Kg7 {[%clk 0:00:40]} 76. Rh4 {[%clk 0:00:22]}  Kf6 {[%clk 0:00:40]} 77. Rf4+ {[%clk 0:00:22]}  Kg7 {[%clk 0:00:40]} 78. Rg4+ {[%clk 0:00:21]}  Kf6 {[%clk 0:00:40]} 79. Rf4+ {[%clk 0:00:19]}  Kg7 {[%clk 0:00:41]} 80. Re4 {[%clk 0:00:20]}  Kf6 {[%clk 0:00:40]} 81. Rg4 {[%clk 0:00:20]}  Qc3 {[%clk 0:00:39]} 82. Be4 {[%clk 0:00:19]}  Qb2 {[%clk 0:00:38]} 83. Rf4+ {[%clk 0:00:19]}  Kg7 {[%clk 0:00:38]} 84. g4 {[%clk 0:00:19]}  Qb8 {[%clk 0:00:36]} 85. f3 {[%clk 0:00:18]}  Qxf4 {[%clk 0:00:35]} 86. Kh3 {[%clk 0:00:18]}  Kf6 {[%clk 0:00:35]} 87. Kg2 {[%clk 0:00:18]}  Kg5 {[%clk 0:00:36]} 88. Kf2 {[%clk 0:00:19]}  Kh4 {[%clk 0:00:36]} 89. Ke2 {[%clk 0:00:20]}  Kg3 {[%clk 0:00:36]} 90. Kd3 {[%clk 0:00:20]}  Kf2 {[%clk 0:00:35]} 91. Kc4 {[%clk 0:00:21]}  Ke3 {[%clk 0:00:35]} 92. Kd5 {[%clk 0:00:21]}  Qg5+ {[%clk 0:00:34]} 93. Ke6 {[%clk 0:00:21]}  Kd4 {[%clk 0:00:34]} 94. Kd6 {[%clk 0:00:20]}  Qf6+ {[%clk 0:00:33]} 95. Kd7 {[%clk 0:00:20]}  Kc5 {[%clk 0:00:34]} 96. Bf5 {[%clk 0:00:15]}  Qd6+ {[%clk 0:00:33]} 97. Ke8 {[%clk 0:00:15]}  Qc7 {[%clk 0:00:30]} 98. g5 {[%clk 0:00:11]}  Kd6 {[%clk 0:00:31]} 99. Kf8 {[%clk 0:00:09]}  Qe7+ {[%clk 0:00:30]} 100. Kg8 {[%clk 0:00:10]}  Qxg5+ {[%clk 0:00:30]} 101. Bg6 {[%clk 0:00:09]}  Qxg6+ {[%clk 0:00:28]} 0-1


[Site "https://www.chess.com"]